[Event "Late-Titled-Tuesday-Blitz-October-10-2023"]
[Site "Chess.com"]
[Date "2023.10.10"]
[Round "4"]
[White "Cayse"]
[Black "ChristopherYoo"]
[Result "1/2-1/2"]
[WhiteElo "2862"]
[BlackElo "3025"]
[TimeControl "180+1"]
[EndTime "14:38:13 PDT"]
[Termination "Game drawn by repetition"]

1. e4 {[%clk 0:03:00.9]} 1... c5 {[%clk 0:02:57.2]} 2. Nf3 {[%clk 0:03:00.8]}
2... Nc6 {[%clk 0:02:53.4]} 3. d4 {[%clk 0:03:00.2]} 3... cxd4 {[%clk
0:02:52.9]} 4. Nxd4 {[%clk 0:03:01.1]} 4... Nf6 {[%clk 0:02:53.3]} 5. Nc3 {[%clk
0:03:01.2]} 5... e5 {[%clk 0:02:53.2]} 6. Ndb5 {[%clk 0:03:00.5]} 6... d6 {[%clk
0:02:53.9]} 7. Bd3 {[%clk 0:03:00.5]} 7... a6 {[%clk 0:02:46.9]} 8. Na3 {[%clk
0:03:00.2]} 8... h6 {[%clk 0:02:44.8]} 9. O-O {[%clk 0:02:58.7]} 9... b5 {[%clk
0:02:42.3]} 10. Nd5 {[%clk 0:02:58.1]} 10... Nxd5 {[%clk 0:02:03.3]} 11. exd5
{[%clk 0:02:57.8]} 11... Ne7 {[%clk 0:02:03.7]} 12. c4 {[%clk 0:02:57.4]} 12...
g6 {[%clk 0:01:52.9]} 13. cxb5 {[%clk 0:02:57.1]} 13... Bg7 {[%clk 0:01:51.4]}
14. bxa6 {[%clk 0:02:50.6]} 14... O-O {[%clk 0:01:50.1]} 15. Re1 {[%clk
0:02:45.4]} 15... Bxa6 {[%clk 0:01:47.8]} 16. Bxa6 {[%clk 0:02:45.2]} 16... Rxa6
{[%clk 0:01:48.7]} 17. Nb5 {[%clk 0:02:44.4]} 17... Qb6 {[%clk 0:01:35.5]} 18.
a4 {[%clk 0:02:40.9]} 18... Qb7 {[%clk 0:01:34.4]} 19. b3 {[%clk 0:02:32.8]}
19... Qxd5 {[%clk 0:01:23.1]} 20. Ba3 {[%clk 0:02:32]} 20... Qxd1 {[%clk
0:01:09.5]} 21. Raxd1 {[%clk 0:02:31.2]} 21... Nf5 {[%clk 0:01:09.7]} 22. Nxd6
{[%clk 0:02:28.5]} 22... Nd4 {[%clk 0:01:09.2]} 23. Nb5 {[%clk 0:02:02.7]} 23...
Rc8 {[%clk 0:01:07.7]} 24. Nxd4 {[%clk 0:01:59.5]} 24... exd4 {[%clk 0:01:08.6]}
25. Bb2 {[%clk 0:01:53.2]} 25... Rb6 {[%clk 0:01:06.5]} 26. Bxd4 {[%clk
0:01:39.8]} 26... Bxd4 {[%clk 0:01:06]} 27. Rxd4 {[%clk 0:01:40.2]} 27... Rxb3
{[%clk 0:01:06.7]} 28. h4 {[%clk 0:01:32.7]} 28... Rb2 {[%clk 0:00:50.8]} 29.
Rf4 {[%clk 0:01:28.6]} 29... Kf8 {[%clk 0:00:30.1]} 30. Re5 {[%clk 0:01:22.1]}
30... Ra2 {[%clk 0:00:27.9]} 31. Ra5 {[%clk 0:01:12.4]} 31... Rc7 {[%clk
0:00:24.4]} 32. Ra6 {[%clk 0:01:08.8]} 32... Kg7 {[%clk 0:00:23.7]} 33. Kh2
{[%clk 0:01:08.3]} 33... Rb7 {[%clk 0:00:23.4]} 34. Kh3 {[%clk 0:01:05]} 34...
Rb3+ {[%clk 0:00:22.9]} 35. g3 {[%clk 0:00:54.3]} 35... Rb7 {[%clk 0:00:22.3]}
36. Kg2 {[%clk 0:00:54.5]} 36... Rd7 {[%clk 0:00:21.7]} 37. Rb6 {[%clk
0:00:51.4]} 37... Ra7 {[%clk 0:00:21.3]} 38. Rbb4 {[%clk 0:00:51.3]} 38... Re7
{[%clk 0:00:20.9]} 39. Rbc4 {[%clk 0:00:33.1]} 39... Rb7 {[%clk 0:00:20.3]} 40.
Rcd4 {[%clk 0:00:33]} 40... Ra7 {[%clk 0:00:20.4]} 41. Rfe4 {[%clk 0:00:30.5]}
41... Rb7 {[%clk 0:00:20.3]} 42. Kf1 {[%clk 0:00:28.2]} 42... Ra7 {[%clk
0:00:20.3]} 43. Rc4 {[%clk 0:00:25]} 43... Ra6 {[%clk 0:00:20.1]} 44. Rf4 {[%clk
0:00:23.3]} 44... g5 {[%clk 0:00:18.7]} 45. hxg5 {[%clk 0:00:18.8]} 45... hxg5
{[%clk 0:00:19.6]} 46. Rg4 {[%clk 0:00:19.3]} 46... Kg6 {[%clk 0:00:13.8]} 47.
Rge4 {[%clk 0:00:15.9]} 47... Ra1+ {[%clk 0:00:11.7]} 48. Kg2 {[%clk 0:00:15.5]}
48... Ra3 {[%clk 0:00:10.1]} 49. Red4 {[%clk 0:00:12.4]} 49... Ra2 {[%clk
0:00:10]} 50. Kf1 {[%clk 0:00:07.3]} 50... Rf6 {[%clk 0:00:06.4]} 51. f4 {[%clk
0:00:07.5]} 51... Rb6 {[%clk 0:00:04.6]} 52. Rd1 {[%clk 0:00:07.4]} 52... Rbb2
{[%clk 0:00:03.8]} 53. fxg5 {[%clk 0:00:07.4]} 53... Kxg5 {[%clk 0:00:03.6]} 54.
Rf4 {[%clk 0:00:06.8]} 54... f5 {[%clk 0:00:03.2]} 55. Kg1 {[%clk 0:00:04.9]}
55... Rg2+ {[%clk 0:00:03.2]} 56. Kf1 {[%clk 0:00:05.3]} 56... Rxg3 {[%clk
0:00:02.6]} 57. Rf2 {[%clk 0:00:05.4]} 57... Rxa4 {[%clk 0:00:02.4]} 58. Rg2
{[%clk 0:00:05.8]} 58... Rxg2 {[%clk 0:00:02.3]} 59. Kxg2 {[%clk 0:00:06]} 59...
Ra2+ {[%clk 0:00:02.5]} 60. Kf3 {[%clk 0:00:06.1]} 60... Ra3+ {[%clk 0:00:03.1]}
61. Kf2 {[%clk 0:00:06.5]} 61... Kg4 {[%clk 0:00:03]} 62. Rd4+ {[%clk
0:00:06.2]} 62... f4 {[%clk 0:00:02.7]} 63. Rd2 {[%clk 0:00:05.7]} 63... Rh3
{[%clk 0:00:02.3]} 64. Kg2 {[%clk 0:00:05.5]} 64... f3+ {[%clk 0:00:02.3]} 65.
Kg1 {[%clk 0:00:05.4]} 65... Rg3+ {[%clk 0:00:02]} 66. Kf1 {[%clk 0:00:05.6]}
66... Rh3 {[%clk 0:00:02.4]} 67. Rd8 {[%clk 0:00:06]} 67... Rh1+ {[%clk
0:00:02.2]} 68. Kf2 {[%clk 0:00:06.3]} 68... Rh2+ {[%clk 0:00:02.7]} 69. Kf1
{[%clk 0:00:06.7]} 69... Ra2 {[%clk 0:00:02.7]} 70. Rg8+ {[%clk 0:00:06.3]}
70... Kf4 {[%clk 0:00:03.4]} 71. Rf8+ {[%clk 0:00:06.9]} 71... Ke3 {[%clk
0:00:03.9]} 72. Re8+ {[%clk 0:00:07.4]} 72... Kf4 {[%clk 0:00:04.4]} 73. Rf8+
{[%clk 0:00:07.9]} 73... Ke3 {[%clk 0:00:05.1]} 74. Re8+ {[%clk 0:00:08.3]}
74... Kf4 {[%clk 0:00:05.5]} 75. Rf8+ {[%clk 0:00:08.7]} 1/2-1/2

[Event "Late-Titled-Tuesday-Blitz-October-10-2023"]
[Site "Chess.com"]
[Date "2023.10.10"]
[Round "4"]
[White "RIPOL"]
[Black "Sacbutt"]
[Result "1-0"]
[WhiteElo "2436"]
[BlackElo "2190"]
[TimeControl "180+1"]
[EndTime "14:38:17 PDT"]
[Termination "RIPOL won on time"]

1. d4 {[%clk 0:03:00.9]} 1... e5 {[%clk 0:02:59.8]} 2. dxe5 {[%clk 0:02:59.8]}
2... d6 {[%clk 0:03:00.5]} 3. Nf3 {[%clk 0:02:59.3]} 3... Nc6 {[%clk 0:03:00.4]}
4. Bf4 {[%clk 0:02:54]} 4... Bg4 {[%clk 0:03:00.1]} 5. exd6 {[%clk 0:02:50.2]}
5... Qf6 {[%clk 0:03:00.2]} 6. Qc1 {[%clk 0:02:28.2]} 6... Bxd6 {[%clk
0:02:58.3]} 7. Bxd6 {[%clk 0:02:27.2]} 7... Qxd6 {[%clk 0:02:59.2]} 8. Qd2
{[%clk 0:02:17.6]} 8... Qc5 {[%clk 0:02:44.6]} 9. Nc3 {[%clk 0:02:04.9]} 9...
Rd8 {[%clk 0:02:36.9]} 10. Qe3+ {[%clk 0:01:56.6]} 10... Qxe3 {[%clk 0:02:35.5]}
11. fxe3 {[%clk 0:01:57.3]} 11... Nb4 {[%clk 0:02:27.8]} 12. Rc1 {[%clk
0:01:56.3]} 12... Nf6 {[%clk 0:02:18.8]} 13. a3 {[%clk 0:01:48.6]} 13... Nbd5
{[%clk 0:02:16.8]} 14. Nxd5 {[%clk 0:01:46.2]} 14... Nxd5 {[%clk 0:02:16.9]} 15.
Kf2 {[%clk 0:01:45.1]} 15... O-O {[%clk 0:02:14.3]} 16. h3 {[%clk 0:01:32.8]}
16... Bh5 {[%clk 0:02:09.3]} 17. e4 {[%clk 0:00:30.9]} 17... Nf6 {[%clk
0:02:03.1]} 18. e5 {[%clk 0:00:30.6]} 18... Ne4+ {[%clk 0:01:39.8]} 19. Ke3
{[%clk 0:00:30.6]} 19... Ng3 {[%clk 0:01:34.7]} 20. Rg1 {[%clk 0:00:30.8]} 20...
Rfe8 {[%clk 0:01:32.5]} 21. Kf4 {[%clk 0:00:30]} 21... Nxf1 {[%clk 0:01:31.5]}
22. Rgxf1 {[%clk 0:00:29.7]} 22... Bxf3 {[%clk 0:01:24.9]} 23. Rxf3 {[%clk
0:00:28.9]} 23... Rd4+ {[%clk 0:01:24.5]} 24. e4 {[%clk 0:00:27.9]} 24... g5+
{[%clk 0:00:59.5]} 25. Ke3 {[%clk 0:00:28]} 25... Rc4 {[%clk 0:00:49.9]} 26. Rf5
{[%clk 0:00:27.7]} 26... h6 {[%clk 0:00:50.4]} 27. Kd3 {[%clk 0:00:26.8]} 27...
Rc6 {[%clk 0:00:39.5]} 28. c4 {[%clk 0:00:25.7]} 28... Rce6 {[%clk 0:00:33.8]}
29. Kd4 {[%clk 0:00:25.9]} 29... Rd8+ {[%clk 0:00:34]} 30. Kc3 {[%clk
0:00:25.5]} 30... Rde8 {[%clk 0:00:31.3]} 31. Kd4 {[%clk 0:00:25.6]} 31... Rd8+
{[%clk 0:00:29.7]} 32. Kc3 {[%clk 0:00:25.7]} 32... Rde8 {[%clk 0:00:29.4]} 33.
Rcf1 {[%clk 0:00:25.4]} 33... R8e7 {[%clk 0:00:24.6]} 34. Kd4 {[%clk 0:00:25.5]}
34... Kg7 {[%clk 0:00:22.3]} 35. h4 {[%clk 0:00:24.6]} 35... gxh4 {[%clk
0:00:20.8]} 36. R1f4 {[%clk 0:00:23.1]} 36... Rd7+ {[%clk 0:00:21.2]} 37. Ke3
{[%clk 0:00:22.5]} 37... Rde7 {[%clk 0:00:21.6]} 38. Rg4+ {[%clk 0:00:22.5]}
38... Kf8 {[%clk 0:00:20.1]} 39. Kf4 {[%clk 0:00:22.2]} 39... Rc6 {[%clk
0:00:13.5]} 40. b3 {[%clk 0:00:21.3]} 40... a6 {[%clk 0:00:12.7]} 41. Rxh4
{[%clk 0:00:20.4]} 41... b5 {[%clk 0:00:12.5]} 42. Rf6 {[%clk 0:00:19]} 42...
Ree6 {[%clk 0:00:07.8]} 43. Rhxh6 {[%clk 0:00:18.4]} 43... Kg8 {[%clk
0:00:06.8]} 44. Rxe6 {[%clk 0:00:18]} 44... fxe6 {[%clk 0:00:07.5]} 45. cxb5
{[%clk 0:00:17.2]} 45... axb5 {[%clk 0:00:08.4]} 46. a4 {[%clk 0:00:16.4]} 46...
bxa4 {[%clk 0:00:08]} 47. bxa4 {[%clk 0:00:16.6]} 47... Kg7 {[%clk 0:00:08.9]}
48. Rf6 {[%clk 0:00:15.5]} 48... Ra6 {[%clk 0:00:07.4]} 49. a5 {[%clk
0:00:14.9]} 49... c5 {[%clk 0:00:05.8]} 50. g4 {[%clk 0:00:13.6]} 50... c4
{[%clk 0:00:06.2]} 51. Ke3 {[%clk 0:00:12.9]} 51... Rxa5 {[%clk 0:00:06.7]} 52.
Kd4 {[%clk 0:00:12.5]} 52... c3 {[%clk 0:00:05.9]} 53. Rf3 {[%clk 0:00:12.6]}
53... c2 {[%clk 0:00:04.1]} 54. Rc3 {[%clk 0:00:12.2]} 54... Ra2 {[%clk
0:00:04.7]} 55. Kd3 {[%clk 0:00:11.7]} 55... Ra5 {[%clk 0:00:04.9]} 56. Rxc2
{[%clk 0:00:11]} 56... Rxe5 {[%clk 0:00:05.2]} 57. Kd4 {[%clk 0:00:11.3]} 57...
Rg5 {[%clk 0:00:05.5]} 58. Rg2 {[%clk 0:00:11.4]} 58... Kf6 {[%clk 0:00:04.6]}
59. Ke3 {[%clk 0:00:11.3]} 59... Ke5 {[%clk 0:00:04.6]} 60. Rg3 {[%clk
0:00:10.7]} 60... Rg6 {[%clk 0:00:03.6]} 61. g5 {[%clk 0:00:10.9]} 61... Rg7
{[%clk 0:00:04]} 62. g6 {[%clk 0:00:10.5]} 62... Kf6 {[%clk 0:00:04.1]} 63. Kf4
{[%clk 0:00:10.7]} 63... Rxg6 {[%clk 0:00:04.1]} 64. e5+ {[%clk 0:00:10.4]}
64... Kf7 {[%clk 0:00:04.1]} 65. Ra3 {[%clk 0:00:10.5]} 65... Rh6 {[%clk
0:00:03.8]} 66. Ra7+ {[%clk 0:00:10.4]} 66... Ke8 {[%clk 0:00:03.1]} 67. Kg5
{[%clk 0:00:10.3]} 67... Rh1 {[%clk 0:00:02.7]} 68. Kf6 {[%clk 0:00:10.3]} 68...
Rh6+ {[%clk 0:00:02.9]} 69. Kg5 {[%clk 0:00:10.3]} 69... Rh1 {[%clk 0:00:03.2]}
70. Rb7 {[%clk 0:00:10.6]} 70... Kd8 {[%clk 0:00:03.1]} 71. Kf6 {[%clk 0:00:10]}
71... Rh6+ {[%clk 0:00:03.2]} 72. Kg5 {[%clk 0:00:09.6]} 72... Rh1 {[%clk
0:00:02.6]} 73. Rf7 {[%clk 0:00:09.4]} 73... Re1 {[%clk 0:00:02.6]} 74. Kf6
{[%clk 0:00:09]} 1-0

[Event "Late-Titled-Tuesday-Blitz-October-10-2023"]
[Site "Chess.com"]
[Date "2023.10.10"]
[Round "4"]
[White "kaanadayhamle"]
[Black "Aygehovit1992"]
[Result "1/2-1/2"]
[WhiteElo "2463"]
[BlackElo "2688"]
[TimeControl "180+1"]
[EndTime "14:38:36 PDT"]
[Termination "Game drawn - insufficient material"]

1. Nf3 {[%clk 0:02:50]} 1... Nf6 {[%clk 0:02:59.6]} 2. g3 {[%clk 0:02:50.9]}
2... b5 {[%clk 0:02:58.4]} 3. Bg2 {[%clk 0:02:51.4]} 3... Bb7 {[%clk 0:02:58.8]}
4. O-O {[%clk 0:02:52]} 4... e6 {[%clk 0:02:58.4]} 5. a4 {[%clk 0:02:52.2]} 5...
b4 {[%clk 0:02:57.8]} 6. c3 {[%clk 0:02:52.5]} 6... bxc3 {[%clk 0:02:54.3]} 7.
Nxc3 {[%clk 0:02:53.4]} 7... c5 {[%clk 0:02:54.2]} 8. Qb3 {[%clk 0:02:53.3]}
8... Qc8 {[%clk 0:02:53.3]} 9. d3 {[%clk 0:02:51.1]} 9... Be7 {[%clk 0:02:52.5]}
10. Be3 {[%clk 0:02:50.1]} 10... d5 {[%clk 0:02:47.2]} 11. Bf4 {[%clk
0:02:10.8]} 11... O-O {[%clk 0:02:34.3]} 12. Nb5 {[%clk 0:02:09]} 12... Ne8
{[%clk 0:02:27.3]} 13. Rac1 {[%clk 0:02:03.6]} 13... Nd7 {[%clk 0:02:26.4]} 14.
Qc2 {[%clk 0:01:33.6]} 14... a6 {[%clk 0:02:16.4]} 15. Nc3 {[%clk 0:01:31.6]}
15... Bc6 {[%clk 0:01:56.7]} 16. Rfd1 {[%clk 0:01:18.2]} 16... Qb7 {[%clk
0:01:49.2]} 17. e4 {[%clk 0:01:00.1]} 17... d4 {[%clk 0:01:13.7]} 18. Ne2 {[%clk
0:00:59.3]} 18... Rc8 {[%clk 0:01:08.7]} 19. g4 {[%clk 0:00:52.7]} 19... f6
{[%clk 0:01:07.8]} 20. Bg3 {[%clk 0:00:41.5]} 20... e5 {[%clk 0:01:05.6]} 21.
Nd2 {[%clk 0:00:40.1]} 21... g5 {[%clk 0:01:02.5]} 22. Nc4 {[%clk 0:00:39.9]}
22... Ng7 {[%clk 0:01:01]} 23. Na5 {[%clk 0:00:25.6]} 23... Qa8 {[%clk
0:00:59.5]} 24. Qc4+ {[%clk 0:00:19.6]} 24... Kh8 {[%clk 0:00:59]} 25. Nxc6
{[%clk 0:00:18.8]} 25... Qxc6 {[%clk 0:00:58.1]} 26. a5 {[%clk 0:00:18.6]} 26...
Qb5 {[%clk 0:00:48.1]} 27. b3 {[%clk 0:00:17.7]} 27... Nb8 {[%clk 0:00:41.1]}
28. f3 {[%clk 0:00:16.5]} 28... Nc6 {[%clk 0:00:40.2]} 29. Be1 {[%clk
0:00:16.4]} 29... Rb8 {[%clk 0:00:28]} 30. Rb1 {[%clk 0:00:16.2]} 30... Bd8
{[%clk 0:00:21.6]} 31. Rdc1 {[%clk 0:00:14.1]} 31... Bxa5 {[%clk 0:00:19.4]} 32.
Bxa5 {[%clk 0:00:12.1]} 32... Nxa5 {[%clk 0:00:15.1]} 33. Qxc5 {[%clk
0:00:12.6]} 33... Qxc5 {[%clk 0:00:15]} 34. Rxc5 {[%clk 0:00:13.5]} 34... Nxb3
{[%clk 0:00:15.5]} 35. Rc6 {[%clk 0:00:14]} 35... a5 {[%clk 0:00:14.2]} 36. Ra6
{[%clk 0:00:13.9]} 36... Kg8 {[%clk 0:00:12.8]} 37. Bf1 {[%clk 0:00:11.3]} 37...
Nc5 {[%clk 0:00:09.4]} 38. Rxb8 {[%clk 0:00:10.5]} 38... Rxb8 {[%clk 0:00:06.8]}
39. Rxa5 {[%clk 0:00:10.5]} 39... Nxd3 {[%clk 0:00:07.2]} 40. Nxd4 {[%clk
0:00:10.2]} 40... Ne1 {[%clk 0:00:05.6]} 41. Kf2 {[%clk 0:00:07.1]} 41... exd4
{[%clk 0:00:06]} 42. Kxe1 {[%clk 0:00:07.4]} 42... Rb1+ {[%clk 0:00:03.2]} 43.
Kf2 {[%clk 0:00:07.6]} 43... Rb2+ {[%clk 0:00:03.7]} 44. Kg3 {[%clk 0:00:08.1]}
44... Kf8 {[%clk 0:00:03.2]} 45. Bc4 {[%clk 0:00:07]} 45... Ne8 {[%clk
0:00:03.1]} 46. Ra8 {[%clk 0:00:06.8]} 46... Ke7 {[%clk 0:00:03.1]} 47. Ra7+
{[%clk 0:00:07]} 47... Kd6 {[%clk 0:00:03.2]} 48. Rxh7 {[%clk 0:00:06.6]} 48...
Kc5 {[%clk 0:00:03.3]} 49. Bd3 {[%clk 0:00:05.8]} 49... Kb4 {[%clk 0:00:02.4]}
50. Rb7+ {[%clk 0:00:05.3]} 50... Kc3 {[%clk 0:00:02.4]} 51. Rxb2 {[%clk
0:00:05.7]} 51... Kxb2 {[%clk 0:00:03.3]} 52. Kf2 {[%clk 0:00:05.5]} 52... Kc3
{[%clk 0:00:03.6]} 53. Ke2 {[%clk 0:00:06.4]} 53... Nc7 {[%clk 0:00:03.5]} 54.
h4 {[%clk 0:00:06.2]} 54... gxh4 {[%clk 0:00:03.3]} 55. f4 {[%clk 0:00:06.7]}
55... Ne6 {[%clk 0:00:03.8]} 56. Ba6 {[%clk 0:00:05.9]} 56... Nxf4+ {[%clk
0:00:04.1]} 57. Kf3 {[%clk 0:00:06.8]} 57... h3 {[%clk 0:00:04.7]} 58. Kg3
{[%clk 0:00:05.6]} 58... Ne6 {[%clk 0:00:03.7]} 59. Kxh3 {[%clk 0:00:05.5]}
59... Ng5+ {[%clk 0:00:04]} 60. Kg3 {[%clk 0:00:05.9]} 60... Nxe4+ {[%clk
0:00:03.5]} 61. Kf4 {[%clk 0:00:06.8]} 61... Nc5 {[%clk 0:00:04.1]} 62. Be2
{[%clk 0:00:05.7]} 62... Kd2 {[%clk 0:00:04.2]} 63. Bf3 {[%clk 0:00:06]} 63...
d3 {[%clk 0:00:04.1]} 64. Kf5 {[%clk 0:00:06.1]} 64... Ke3 {[%clk 0:00:04.4]}
65. Bd1 {[%clk 0:00:06.2]} 65... Nd7 {[%clk 0:00:03.7]} 66. Ke6 {[%clk
0:00:06.3]} 66... Nc5+ {[%clk 0:00:02.9]} 67. Kxf6 {[%clk 0:00:06.2]} 67... Ne4+
{[%clk 0:00:03.8]} 68. Kf5 {[%clk 0:00:05.5]} 68... Nc3 {[%clk 0:00:02.9]} 69.
Bb3 {[%clk 0:00:05.8]} 69... Kd4 {[%clk 0:00:02.7]} 70. g5 {[%clk 0:00:06.1]}
70... Kc5 {[%clk 0:00:02.6]} 71. g6 {[%clk 0:00:06.3]} 71... Kb4 {[%clk
0:00:03]} 72. g7 {[%clk 0:00:06.3]} 72... Kxb3 {[%clk 0:00:03.9]} 73. g8=Q+
{[%clk 0:00:06.7]} 73... Kc2 {[%clk 0:00:04.8]} 74. Qc4 {[%clk 0:00:04.7]} 74...
d2 {[%clk 0:00:05]} 75. Qd4 {[%clk 0:00:04.8]} 75... d1=Q {[%clk 0:00:04.1]} 76.
Qxd1+ {[%clk 0:00:05.7]} 76... Nxd1 {[%clk 0:00:04.4]} 1/2-1/2

[Event "Late-Titled-Tuesday-Blitz-October-10-2023"]
[Site "Chess.com"]
[Date "2023.10.10"]
[Round "4"]
[White "AungTZ"]
[Black "BulteniBo"]
[Result "1-0"]
[WhiteElo "2059"]
[BlackElo "2521"]
[TimeControl "180+1"]
[EndTime "14:39:02 PDT"]
[Termination "AungTZ won by resignation"]

1. e4 {[%clk 0:02:58.4]} 1... g6 {[%clk 0:03:00.4]} 2. d4 {[%clk 0:02:58.2]}
2... Bg7 {[%clk 0:03:01.1]} 3. Nc3 {[%clk 0:02:58.6]} 3... d6 {[%clk 0:03:01.7]}
4. f4 {[%clk 0:02:58.7]} 4... Nf6 {[%clk 0:03:02.3]} 5. Nf3 {[%clk 0:02:58.6]}
5... O-O {[%clk 0:03:02.9]} 6. Bd3 {[%clk 0:02:58.2]} 6... c5 {[%clk 0:03:03.4]}
7. dxc5 {[%clk 0:02:52.4]} 7... dxc5 {[%clk 0:03:04.3]} 8. O-O {[%clk
0:02:52.2]} 8... Nc6 {[%clk 0:03:03.8]} 9. Kh1 {[%clk 0:02:52]} 9... Nd4 {[%clk
0:02:51.1]} 10. Nxd4 {[%clk 0:02:48.6]} 10... cxd4 {[%clk 0:02:49.9]} 11. Ne2
{[%clk 0:02:49.1]} 11... Ng4 {[%clk 0:02:39.6]} 12. Qe1 {[%clk 0:02:48.5]} 12...
f5 {[%clk 0:02:25.6]} 13. e5 {[%clk 0:02:44.7]} 13... Be6 {[%clk 0:02:20.1]} 14.
h4 {[%clk 0:02:44.2]} 14... h5 {[%clk 0:02:16.2]} 15. Ng1 {[%clk 0:02:38.7]}
15... Bd5 {[%clk 0:02:12.8]} 16. Nf3 {[%clk 0:02:36.9]} 16... Bxf3 {[%clk
0:02:11]} 17. gxf3 {[%clk 0:02:32.4]} 17... Nh6 {[%clk 0:02:00.6]} 18. Rg1
{[%clk 0:02:31.4]} 18... Kh7 {[%clk 0:02:00.3]} 19. Qg3 {[%clk 0:02:26.3]} 19...
Qb6 {[%clk 0:01:59.9]} 20. Bd2 {[%clk 0:02:22.1]} 20... Rac8 {[%clk 0:01:45.3]}
21. Bb4 {[%clk 0:02:15.7]} 21... Rf7 {[%clk 0:01:37]} 22. Rae1 {[%clk
0:02:10.1]} 22... Qe6 {[%clk 0:01:35.7]} 23. b3 {[%clk 0:02:02.2]} 23... Bf8
{[%clk 0:01:19.5]} 24. Bc4 {[%clk 0:01:43.2]} 24... Rxc4 {[%clk 0:01:18.9]} 25.
bxc4 {[%clk 0:01:43.5]} 25... Rg7 {[%clk 0:01:19]} 26. Rg2 {[%clk 0:01:25.2]}
26... Qxc4 {[%clk 0:01:15.3]} 27. Ba3 {[%clk 0:01:24.9]} 27... Qxa2 {[%clk
0:01:07.9]} 28. Bc1 {[%clk 0:01:16.9]} 28... Qd5 {[%clk 0:01:01.1]} 29. Reg1
{[%clk 0:01:14.5]} 29... e6 {[%clk 0:00:54.4]} 30. Qf2 {[%clk 0:01:12.9]} 30...
Bc5 {[%clk 0:00:52.3]} 31. Qe2 {[%clk 0:01:11.6]} 31... Ng8 {[%clk 0:00:44.9]}
32. Rg5 {[%clk 0:01:05.1]} 32... Ne7 {[%clk 0:00:40.6]} 33. Qg2 {[%clk
0:01:00.4]} 33... d3 {[%clk 0:00:39.6]} 34. Rd1 {[%clk 0:00:55]} 34... Qc4
{[%clk 0:00:26.6]} 35. Rxd3 {[%clk 0:00:52]} 35... Nd5 {[%clk 0:00:26.2]} 36.
Rd1 {[%clk 0:00:44.9]} 36... Nxf4 {[%clk 0:00:22.9]} 37. Bxf4 {[%clk 0:00:44.5]}
37... Qxf4 {[%clk 0:00:23.8]} 38. Qg3 {[%clk 0:00:41]} 38... Qxg3 {[%clk
0:00:19.8]} 39. Rxg3 {[%clk 0:00:41.3]} 39... a5 {[%clk 0:00:20.1]} 40. f4
{[%clk 0:00:34.8]} 40... a4 {[%clk 0:00:18.7]} 41. Rc3 {[%clk 0:00:34.8]} 41...
b6 {[%clk 0:00:18.4]} 42. Kg2 {[%clk 0:00:34.8]} 42... a3 {[%clk 0:00:18.4]} 43.
Kf3 {[%clk 0:00:34.6]} 43... a2 {[%clk 0:00:16.9]} 44. Rb3 {[%clk 0:00:29.4]}
44... Ra7 {[%clk 0:00:14.9]} 45. Ra1 {[%clk 0:00:21.4]} 45... Ra4 {[%clk
0:00:12.7]} 46. Rb2 {[%clk 0:00:15]} 46... Ra3+ {[%clk 0:00:12.9]} 47. Kg2
{[%clk 0:00:14.4]} 47... Bd4 {[%clk 0:00:11.9]} 48. Rbxa2 {[%clk 0:00:12.6]}
48... Re3 {[%clk 0:00:11.7]} 49. Rf1 {[%clk 0:00:09.8]} 49... Re2+ {[%clk
0:00:10.2]} 50. Kf3 {[%clk 0:00:10]} 50... Re3+ {[%clk 0:00:10.1]} 51. Kg2
{[%clk 0:00:10.8]} 51... b5 {[%clk 0:00:10.5]} 52. Rf3 {[%clk 0:00:10]} 52...
Re2+ {[%clk 0:00:10.3]} 53. Kg3 {[%clk 0:00:10.8]} 53... Re1 {[%clk 0:00:09.7]}
54. Kg2 {[%clk 0:00:09.9]} 54... Rg1+ {[%clk 0:00:09.5]} 55. Kh2 {[%clk
0:00:10.6]} 55... Rg4 {[%clk 0:00:09.8]} 56. Kh3 {[%clk 0:00:10.4]} 56... Rg1
{[%clk 0:00:07.7]} 57. c3 {[%clk 0:00:10.9]} 57... Bc5 {[%clk 0:00:07.4]} 58.
Rg2 {[%clk 0:00:10.6]} 58... Rc1 {[%clk 0:00:06.9]} 59. Rfg3 {[%clk 0:00:09.8]}
59... Be7 {[%clk 0:00:05.5]} 60. Rxg6 {[%clk 0:00:09.3]} 60... Rxc3+ {[%clk
0:00:05.7]} 61. Kh2 {[%clk 0:00:10]} 61... Bf8 {[%clk 0:00:05]} 62. Rxe6 {[%clk
0:00:07.9]} 62... b4 {[%clk 0:00:05.4]} 63. Rb6 {[%clk 0:00:08]} 63... b3 {[%clk
0:00:05.5]} 64. Rg5 {[%clk 0:00:08.1]} 64... Rc2+ {[%clk 0:00:04.7]} 65. Kh3
{[%clk 0:00:08.9]} 65... b2 {[%clk 0:00:05.2]} 66. Rxh5+ {[%clk 0:00:08.3]}
66... Kg7 {[%clk 0:00:05.7]} 67. Rxf5 {[%clk 0:00:09.2]} 67... Ba3 {[%clk
0:00:05.2]} 68. Rg5+ {[%clk 0:00:07.7]} 68... Kf7 {[%clk 0:00:05.2]} 69. Rh5
{[%clk 0:00:08.4]} 69... Rc1 {[%clk 0:00:05.6]} 70. Rh7+ {[%clk 0:00:07.9]}
70... Kg8 {[%clk 0:00:05.9]} 71. Rhb7 {[%clk 0:00:08.4]} 71... Rc3+ {[%clk
0:00:05]} 72. Kg4 {[%clk 0:00:07.7]} 72... Rc2 {[%clk 0:00:05.1]} 73. e6 {[%clk
0:00:08.3]} 73... Bf8 {[%clk 0:00:04.6]} 74. f5 {[%clk 0:00:08.2]} 74... Rg2+
{[%clk 0:00:04.3]} 75. Kf3 {[%clk 0:00:08.6]} 75... Rc2 {[%clk 0:00:04.1]} 76.
f6 {[%clk 0:00:08.6]} 76... Bc5 {[%clk 0:00:02.3]} 77. Rb5 {[%clk 0:00:08.6]}
77... Rc3+ {[%clk 0:00:01.8]} 78. Ke4 {[%clk 0:00:08.5]} 78... Rc2 {[%clk
0:00:01.7]} 79. Rxb2 {[%clk 0:00:08.7]} 1-0

[Event "Late-Titled-Tuesday-Blitz-October-10-2023"]
[Site "Chess.com"]
[Date "2023.10.10"]
[Round "5"]
[White "jaskol95"]
[Black "ItalianMachine"]
[Result "1-0"]
[WhiteElo "2574"]
[BlackElo "2409"]
[TimeControl "180+1"]
[EndTime "14:48:09 PDT"]
[Termination "jaskol95 won by resignation"]

1. e4 {[%clk 0:03:00.9]} 1... e5 {[%clk 0:02:53.1]} 2. Nf3 {[%clk 0:03:00.7]}
2... Nc6 {[%clk 0:02:50.1]} 3. Bc4 {[%clk 0:03:01.2]} 3... Nf6 {[%clk
0:02:49.2]} 4. Ng5 {[%clk 0:03:01.4]} 4... d5 {[%clk 0:02:49.6]} 5. exd5 {[%clk
0:03:01.8]} 5... Na5 {[%clk 0:02:49.4]} 6. Bb5+ {[%clk 0:03:02.3]} 6... c6
{[%clk 0:02:49.9]} 7. dxc6 {[%clk 0:03:03.2]} 7... bxc6 {[%clk 0:02:50.5]} 8.
Bd3 {[%clk 0:03:03.9]} 8... Nd5 {[%clk 0:02:48.9]} 9. h4 {[%clk 0:02:39.8]} 9...
h6 {[%clk 0:02:43.8]} 10. Qh5 {[%clk 0:02:33.7]} 10... g6 {[%clk 0:02:22.8]} 11.
Bxg6 {[%clk 0:02:27.8]} 11... fxg6 {[%clk 0:02:23.1]} 12. Qxg6+ {[%clk 0:02:28]}
12... Kd7 {[%clk 0:02:23.8]} 13. Nf7 {[%clk 0:02:12.2]} 13... Qe7 {[%clk
0:01:58.7]} 14. Nxh8 {[%clk 0:02:05.6]} 14... Bg7 {[%clk 0:01:57.4]} 15. Nf7
{[%clk 0:01:53.1]} 15... Nf4 {[%clk 0:01:56.7]} 16. Qxg7 {[%clk 0:01:51.2]} 1-0